[Event "*** Titled Tuesday Blitz"]
[Site "Chess.com"]
[Date "2020.05.26"]
[Round "1"]
[White "WiktoriaPOL"]
[Black "Lagravesamuell"]
[Result "0-1"]
[WhiteElo "2002"]
[BlackElo "2475"]
[TimeControl "180+1"]
[EndTime "10:06:11 PDT"]
[Termination "Lagravesamuell won by resignation"]

1. c4 {[%clk 0:03:00.9]} 1... Nf6 {[%clk 0:02:56.1]} 2. Nc3 {[%clk 0:03:00.7]}
2... e5 {[%clk 0:02:36.4]} 3. Nf3 {[%clk 0:03:00.2]} 3... Nc6 {[%clk 0:02:35.5]}
4. e4 {[%clk 0:02:59.5]} 4... Bc5 {[%clk 0:02:34.5]} 5. Nxe5 {[%clk 0:02:59]}
5... Nxe5 {[%clk 0:02:35.2]} 6. d4 {[%clk 0:02:58.8]} 6... Bb4 {[%clk
0:02:35.9]} 7. dxe5 {[%clk 0:02:58.9]} 7... Nxe4 {[%clk 0:02:36.6]} 8. Qf3
{[%clk 0:02:58.6]} 8... Nxc3 {[%clk 0:02:36.6]} 9. bxc3 {[%clk 0:02:58.9]} 9...
Be7 {[%clk 0:02:24]} 10. Qg3 {[%clk 0:02:56.8]} 10... g5 {[%clk 0:02:08.4]} 11.
Be2 {[%clk 0:02:46.5]} 11... h5 {[%clk 0:02:07.5]} 12. h4 {[%clk 0:02:28.8]}
12... g4 {[%clk 0:02:02.1]} 13. f3 {[%clk 0:02:28.2]} 13... d6 {[%clk
0:01:59.9]} 14. Bf4 {[%clk 0:02:16.1]} 14... Rg8 {[%clk 0:01:52.8]} 15. Rd1
{[%clk 0:02:14.1]} 15... Kf8 {[%clk 0:01:51]} 16. exd6 {[%clk 0:02:05.7]} 16...
cxd6 {[%clk 0:01:48.4]} 17. c5 {[%clk 0:01:47.9]} 17... Rg6 {[%clk 0:01:32.9]}
18. cxd6 {[%clk 0:01:44.1]} 18... Bf6 {[%clk 0:01:33]} 19. Bd3 {[%clk
0:01:22.1]} 19... Bxc3+ {[%clk 0:01:23.6]} 20. Kf2 {[%clk 0:01:14]} 20... Qb6+
{[%clk 0:01:09]} 21. Be3 {[%clk 0:01:10]} 21... Bd4 {[%clk 0:01:08.7]} 22. Bxg6
{[%clk 0:00:56.8]} 22... Bxe3+ {[%clk 0:01:08.9]} 23. Ke2 {[%clk 0:00:56.7]}
23... fxg6 {[%clk 0:01:06.8]} 24. d7 {[%clk 0:00:55.6]} 24... Bxd7 {[%clk
0:01:04.1]} 25. Rxd7 {[%clk 0:00:51.9]} 25... Re8 {[%clk 0:01:03.9]} 26. Kf1
{[%clk 0:00:13.1]} 26... Qb5+ {[%clk 0:01:01.1]} 27. Ke1 {[%clk 0:00:09.5]}
27... Bf4+ {[%clk 0:00:59.4]} 0-1

[Event "*** Titled Tuesday Blitz"]
[Site "Chess.com"]
[Date "2020.05.26"]
[Round "1"]
[White "MaxLeto"]
[Black "1stSecond"]
[Result "0-1"]
[WhiteElo "2342"]
[BlackElo "2703"]
[TimeControl "180+1"]
[EndTime "10:06:16 PDT"]
[Termination "1stSecond won by resignation"]

1. g4 {[%clk 0:02:27.5]} 1... d5 {[%clk 0:02:55]} 2. Bg2 {[%clk 0:02:27.3]} 2...
c6 {[%clk 0:02:55]} 3. g5 {[%clk 0:02:23.4]} 3... e5 {[%clk 0:02:50.3]} 4. d4
{[%clk 0:02:21.9]} 4... exd4 {[%clk 0:02:38.6]} 5. Qxd4 {[%clk 0:02:18]} 5...
Ne7 {[%clk 0:02:38.7]} 6. e4 {[%clk 0:02:16.2]} 6... dxe4 {[%clk 0:02:13.1]} 7.
Qxd8+ {[%clk 0:02:17.1]} 7... Kxd8 {[%clk 0:02:13.5]} 8. Nc3 {[%clk 0:02:15.6]}
8... Ng6 {[%clk 0:02:03.4]} 9. Be3 {[%clk 0:02:04]} 9... Kc7 {[%clk 0:01:55]}
10. O-O-O {[%clk 0:01:58.8]} 10... Bd6 {[%clk 0:01:28.9]} 11. Nxe4 {[%clk
0:01:58.3]} 11... Bf4 {[%clk 0:01:28.7]} 12. Re1 {[%clk 0:01:12.9]} 12... Re8
{[%clk 0:01:26.3]} 13. h4 {[%clk 0:01:09.3]} 13... Bf5 {[%clk 0:01:07.6]} 14.
Ng3 {[%clk 0:00:32.6]} 14... Rxe3 {[%clk 0:01:05.7]} 15. Rxe3 {[%clk 0:00:30.6]}
15... Be6 {[%clk 0:01:01.9]} 16. N1e2 {[%clk 0:00:24.9]} 16... Bxe3+ {[%clk
0:01:02.1]} 17. fxe3 {[%clk 0:00:25.8]} 17... Nd7 {[%clk 0:01:01.6]} 18. h5
{[%clk 0:00:24.7]} 18... Nge5 {[%clk 0:01:02]} 19. Nf4 {[%clk 0:00:24.1]} 19...
Re8 {[%clk 0:00:59.8]} 20. b3 {[%clk 0:00:20.4]} 20... Bg4 {[%clk 0:00:56.4]}
21. Kd2 {[%clk 0:00:18.8]} 21... Bf3 {[%clk 0:00:54.6]} 22. Rf1 {[%clk
0:00:16.3]} 22... Bxg2 {[%clk 0:00:54.6]} 23. Nxg2 {[%clk 0:00:17.2]} 23... Nc5
{[%clk 0:00:55]} 24. h6 {[%clk 0:00:14.8]} 24... gxh6 {[%clk 0:00:53.5]} 25.
gxh6 {[%clk 0:00:13.8]} 25... Rg8 {[%clk 0:00:53.8]} 26. b4 {[%clk 0:00:04.3]}
26... Rxg3 {[%clk 0:00:50]} 0-1

[Event "*** Titled Tuesday Blitz"]
[Site "Chess.com"]
[Date "2020.05.26"]
[Round "1"]
[White "Savagelittlemole"]
[Black "politeplayer"]
[Result "1-0"]
[WhiteElo "2541"]
[BlackElo "2187"]
[TimeControl "180+1"]
[EndTime "10:06:16 PDT"]
[Termination "Savagelittlemole won by resignation"]

1. e4 {[%clk 0:03:00.9]} 1... e6 {[%clk 0:02:59]} 2. d4 {[%clk 0:03:00.4]} 2...
d5 {[%clk 0:02:58.9]} 3. Nd2 {[%clk 0:03:01.1]} 3... dxe4 {[%clk 0:02:58.5]} 4.
Nxe4 {[%clk 0:03:02]} 4... Nd7 {[%clk 0:02:58.8]} 5. Nf3 {[%clk 0:03:02.1]} 5...
Ngf6 {[%clk 0:02:59.2]} 6. Ng3 {[%clk 0:03:00.6]} 6... b6 {[%clk 0:02:56.2]} 7.
Bd3 {[%clk 0:03:00.6]} 7... Bb7 {[%clk 0:02:55.4]} 8. O-O {[%clk 0:03:01.2]}
8... h5 {[%clk 0:02:52.4]} 9. Bg5 {[%clk 0:02:58.6]} 9... Be7 {[%clk 0:02:45.4]}
10. Re1 {[%clk 0:02:54.6]} 10... Ng4 {[%clk 0:02:29.1]} 11. Bxe7 {[%clk
0:02:53.1]} 11... Qxe7 {[%clk 0:02:29.5]} 12. h3 {[%clk 0:02:50.3]} 12... O-O-O
{[%clk 0:02:21.9]} 13. a4 {[%clk 0:02:39.4]} 13... a5 {[%clk 0:01:59.4]} 14. Qe2
{[%clk 0:02:34.3]} 14... h4 {[%clk 0:01:41.5]} 15. Ne4 {[%clk 0:02:29.3]} 15...
Ngf6 {[%clk 0:01:38.6]} 16. Ba6 {[%clk 0:02:25]} 16... Bxa6 {[%clk 0:01:22.1]}
17. Qxa6+ {[%clk 0:02:25.9]} 17... Kb8 {[%clk 0:01:22.5]} 18. Nxf6 {[%clk
0:02:14.1]} 18... gxf6 {[%clk 0:01:17.3]} 19. c4 {[%clk 0:01:54.3]} 19... Qb4
{[%clk 0:01:07.6]} 20. c5 {[%clk 0:01:47.7]} 20... bxc5 {[%clk 0:01:01]} 21.
Rac1 {[%clk 0:01:19.8]} 21... Qb6 {[%clk 0:00:48.9]} 22. Qc4 {[%clk 0:01:18.2]}
22... cxd4 {[%clk 0:00:35.2]} 23. Red1 {[%clk 0:00:58.7]} 23... Ne5 {[%clk
0:00:18]} 24. Nxe5 {[%clk 0:00:58]} 24... fxe5 {[%clk 0:00:18]} 25. Rd3 {[%clk
0:00:57.5]} 25... Ka7 {[%clk 0:00:15.1]} 26. Rb3 {[%clk 0:00:57.3]} 26... Qd6
{[%clk 0:00:14.2]} 27. Qb5 {[%clk 0:00:50.3]} 27... Rb8 {[%clk 0:00:12.7]} 28.
Qxa5+ {[%clk 0:00:48.5]} 28... Qa6 {[%clk 0:00:12.8]} 29. Rxc7+ {[%clk
0:00:48.5]} 1-0

[Event "*** Titled Tuesday Blitz"]
[Site "Chess.com"]
[Date "2020.05.26"]
[Round "1"]
[White "ShahMatKanal"]
[Black "Bigfish1995"]
[Result "0-1"]
[WhiteElo "2453"]
[BlackElo "3028"]
[TimeControl "180+1"]
[EndTime "10:06:17 PDT"]
[Termination "Bigfish1995 won on time"]

1. d4 {[%clk 0:02:57.1]} 1... Nf6 {[%clk 0:02:59.2]} 2. Nf3 {[%clk 0:02:54.2]}
2... b6 {[%clk 0:02:59.1]} 3. g3 {[%clk 0:02:52.8]} 3... Bb7 {[%clk 0:02:58]} 4.
Bg2 {[%clk 0:02:53]} 4... g6 {[%clk 0:02:56.6]} 5. O-O {[%clk 0:02:52.3]} 5...
Bg7 {[%clk 0:02:57.2]} 6. c4 {[%clk 0:02:51.8]} 6... e6 {[%clk 0:02:57.6]} 7.
Nc3 {[%clk 0:02:47.5]} 7... Ne4 {[%clk 0:02:52.4]} 8. Qc2 {[%clk 0:02:29.7]}
8... Nxc3 {[%clk 0:02:51.5]} 9. Qxc3 {[%clk 0:02:29.3]} 9... O-O {[%clk
0:02:50.3]} 10. Rd1 {[%clk 0:02:03.6]} 10... h6 {[%clk 0:02:39.5]} 11. Qc2
{[%clk 0:01:57.5]} 11... Na6 {[%clk 0:02:18.7]} 12. a3 {[%clk 0:01:43.8]} 12...
c5 {[%clk 0:02:15.1]} 13. d5 {[%clk 0:01:38.7]} 13... exd5 {[%clk 0:02:14.7]}
14. cxd5 {[%clk 0:01:38.6]} 14... d6 {[%clk 0:02:13.7]} 15. Bd2 {[%clk
0:01:08.3]} 15... Re8 {[%clk 0:02:09.2]} 16. Bc3 {[%clk 0:01:04.1]} 16... Bxc3
{[%clk 0:02:08.5]} 17. bxc3 {[%clk 0:01:03.7]} 17... Qe7 {[%clk 0:02:09.1]} 18.
e3 {[%clk 0:00:56.6]} 18... Bc8 {[%clk 0:02:02.8]} 19. c4 {[%clk 0:00:53.9]}
19... Bg4 {[%clk 0:01:59]} 20. h3 {[%clk 0:00:49.7]} 20... Bxf3 {[%clk
0:01:58.8]} 21. Bxf3 {[%clk 0:00:50.6]} 21... f5 {[%clk 0:01:53.8]} 22. h4
{[%clk 0:00:41.3]} 22... Qf6 {[%clk 0:01:51.4]} 23. Rab1 {[%clk 0:00:35.2]}
23... Nb8 {[%clk 0:01:50.3]} 24. Qa4 {[%clk 0:00:33.2]} 24... Rd8 {[%clk
0:01:44.9]} 25. Rxb6 {[%clk 0:00:31.3]} 25... axb6 {[%clk 0:01:45.1]} 26. Qxa8
{[%clk 0:00:31.2]} 26... Nd7 {[%clk 0:01:45.8]} 27. Qa4 {[%clk 0:00:23]} 27...
Qb2 {[%clk 0:01:40.3]} 28. Bg2 {[%clk 0:00:14.7]} 28... Ne5 {[%clk 0:01:38.9]}
29. Qa7 {[%clk 0:00:10.8]} 29... Rd7 {[%clk 0:01:35.6]} 30. Qb8+ {[%clk
0:00:09.7]} 30... Kg7 {[%clk 0:01:35.9]} 31. Qe8 {[%clk 0:00:09.3]} 31... Rf7
{[%clk 0:01:35.2]} 32. h5 {[%clk 0:00:08.5]} 32... gxh5 {[%clk 0:01:34]} 33. Qd8
{[%clk 0:00:08.1]} 33... Nxc4 {[%clk 0:01:32.7]} 34. Bf1 {[%clk 0:00:06.9]}
34... Qc2 {[%clk 0:01:30]} 35. Re1 {[%clk 0:00:05.4]} 35... Nd2 {[%clk
0:01:29.3]} 36. Bg2 {[%clk 0:00:02.8]} 36... Qc3 {[%clk 0:01:28.7]} 37. Rd1
{[%clk 0:00:01.6]} 37... Qc2 {[%clk 0:01:23.5]} 38. Re1 {[%clk 0:00:01.1]} 38...
Ne4 {[%clk 0:01:23.6]} 0-1

[Event "*** Titled Tuesday Blitz"]
[Site "Chess.com"]
[Date "2020.05.26"]
[Round "1"]
[White "iwanyu"]
[Black "Savva09022009"]
[Result "1-0"]
[WhiteElo "2776"]
[BlackElo "2398"]
[TimeControl "180+1"]
[EndTime "10:06:17 PDT"]
[Termination "iwanyu won by resignation"]

1. d4 {[%clk 0:03:00.9]} 1... Nf6 {[%clk 0:02:58.8]} 2. c4 {[%clk 0:03:00.8]}
2... e6 {[%clk 0:02:57.3]} 3. Nc3 {[%clk 0:03:01.1]} 3... Bb4 {[%clk 0:02:57.5]}
4. a3 {[%clk 0:02:59.3]} 4... Bxc3+ {[%clk 0:02:56.6]} 5. bxc3 {[%clk
0:03:00.2]} 5... c5 {[%clk 0:02:56.8]} 6. f3 {[%clk 0:02:59.5]} 6... O-O {[%clk
0:02:57.7]} 7. e4 {[%clk 0:02:59.3]} 7... Nc6 {[%clk 0:02:56.3]} 8. Be3 {[%clk
0:02:58]} 8... b6 {[%clk 0:02:54]} 9. Bd3 {[%clk 0:02:48.3]} 9... d6 {[%clk
0:02:52.7]} 10. Ne2 {[%clk 0:02:45.6]} 10... e5 {[%clk 0:02:52.7]} 11. d5 {[%clk
0:02:44.7]} 11... Na5 {[%clk 0:02:52.6]} 12. Ng3 {[%clk 0:02:45.2]} 12... Ba6
{[%clk 0:02:52.5]} 13. Qe2 {[%clk 0:02:44.5]} 13... Qd7 {[%clk 0:02:50.5]} 14.
a4 {[%clk 0:02:44.1]} 14... Ne8 {[%clk 0:02:44]} 15. O-O {[%clk 0:02:41.4]}
15... g6 {[%clk 0:02:40.2]} 16. Bh6 {[%clk 0:02:19.3]} 16... Ng7 {[%clk
0:02:39.1]} 17. f4 {[%clk 0:02:04.3]} 17... exf4 {[%clk 0:02:35.6]} 18. Rxf4
{[%clk 0:02:05.2]} 18... Rae8 {[%clk 0:02:35.3]} 19. Qf1 {[%clk 0:01:26.8]}
19... Nb3 {[%clk 0:02:17.1]} 20. Ra2 {[%clk 0:01:19.6]} 20... Qe7 {[%clk
0:02:08.8]} 21. Raf2 {[%clk 0:01:14.8]} 21... Bc8 {[%clk 0:01:54.4]} 22. Rf6
{[%clk 0:01:10.3]} 22... a6 {[%clk 0:01:30.6]} 23. e5 {[%clk 0:00:53]} 23...
dxe5 {[%clk 0:01:20.4]} 24. Ne4 {[%clk 0:00:50.1]} 24... Bf5 {[%clk 0:01:15.7]}
25. d6 {[%clk 0:00:39.8]} 25... Qd7 {[%clk 0:01:09.9]} 26. R6xf5 {[%clk
0:00:36.9]} 26... Qe6 {[%clk 0:00:49.8]} 27. Nf6+ {[%clk 0:00:33.8]} 27... Kh8
{[%clk 0:00:48]} 28. Nxe8 {[%clk 0:00:28]} 28... Rxe8 {[%clk 0:00:44.4]} 29.
Rxf7 {[%clk 0:00:26.4]} 29... Nh5 {[%clk 0:00:44.6]} 30. Rf8+ {[%clk 0:00:26.1]}
1-0

[Event "*** Titled Tuesday Blitz"]
[Site "Chess.com"]
[Date "2020.05.26"]
[Round "1"]
[White "Herracek"]
[Black "Misticpikachu"]
[Result "1-0"]
[WhiteElo "2573"]
[BlackElo "2224"]
[TimeControl "180+1"]
[EndTime "10:06:17 PDT"]
[Termination "Herracek won by resignation"]

1. c4 {[%clk 0:02:59.3]} 1... e6 {[%clk 0:02:59.6]} 2. Nc3 {[%clk 0:02:59.1]}
2... d5 {[%clk 0:03:00.1]} 3. d4 {[%clk 0:02:59.6]} 3... Nf6 {[%clk 0:02:59.8]}
4. Bg5 {[%clk 0:02:59.4]} 4... Be7 {[%clk 0:02:59.8]} 5. cxd5 {[%clk 0:02:59.9]}
5... exd5 {[%clk 0:02:59.3]} 6. e3 {[%clk 0:02:58.1]} 6... O-O {[%clk
0:02:58.3]} 7. Bd3 {[%clk 0:02:58.4]} 7... c6 {[%clk 0:02:57.6]} 8. Nge2 {[%clk
0:02:57.2]} 8... Re8 {[%clk 0:02:55.5]} 9. O-O {[%clk 0:02:52.3]} 9... Nbd7
{[%clk 0:02:54.9]} 10. Rb1 {[%clk 0:02:48.4]} 10... Nf8 {[%clk 0:02:42.3]} 11.
b4 {[%clk 0:02:47.3]} 11... Ne4 {[%clk 0:02:27.7]} 12. Bxe7 {[%clk 0:02:32.4]}
12... Qxe7 {[%clk 0:02:28.6]} 13. b5 {[%clk 0:02:24.3]} 13... Bg4 {[%clk
0:02:23.5]} 14. Bxe4 {[%clk 0:02:21.4]} 14... dxe4 {[%clk 0:02:18.6]} 15. bxc6
{[%clk 0:02:20.8]} 15... bxc6 {[%clk 0:02:19.5]} 16. Qa4 {[%clk 0:02:20.8]}
16... Qf6 {[%clk 0:01:48.1]} 17. Ng3 {[%clk 0:02:17.4]} 17... Qg6 {[%clk
0:01:42.8]} 18. Rb7 {[%clk 0:02:12.1]} 18... h5 {[%clk 0:01:37.4]} 19. h3 {[%clk
0:01:49.1]} 19... Bc8 {[%clk 0:01:22.8]} 20. Rc7 {[%clk 0:01:49]} 20... h4
{[%clk 0:01:16.9]} 21. Nge2 {[%clk 0:01:40.7]} 21... Bxh3 {[%clk 0:01:13.6]} 22.
Nf4 {[%clk 0:01:41]} 22... Qg4 {[%clk 0:00:17.2]} 23. Nxh3 {[%clk 0:01:37.6]}
23... Ne6 {[%clk 0:00:17.8]} 24. Rxc6 {[%clk 0:01:36.9]} 24... Ng5 {[%clk
0:00:18.7]} 25. Nxg5 {[%clk 0:01:35.1]} 25... Qxg5 {[%clk 0:00:19.6]} 26. Qb5
{[%clk 0:01:18.9]} 26... Qg4 {[%clk 0:00:14.4]} 27. Rc5 {[%clk 0:01:17.1]} 27...
f6 {[%clk 0:00:10.4]} 28. Qe2 {[%clk 0:01:12.3]} 28... Qd7 {[%clk 0:00:01.4]}
29. Qc4+ {[%clk 0:01:12]} 29... Kh8 {[%clk 0:00:01.2]} 30. Ne2 {[%clk
0:01:12.9]} 30... Qe7 {[%clk 0:00:01.1]} 31. Nf4 {[%clk 0:01:13]} 31... g5
{[%clk 0:00:02]} 32. Ng6+ {[%clk 0:01:13.1]} 32... Kg7 {[%clk 0:00:02.5]} 33.
Nxe7 {[%clk 0:01:14]} 33... Rxe7 {[%clk 0:00:03.4]} 34. Rc7 {[%clk 0:01:14.5]}
1-0

[Event "*** Titled Tuesday Blitz"]
[Site "Chess.com"]
[Date "2020.05.26"]
[Round "1"]
[White "semchik73"]
[Black "axvesik"]
[Result "0-1"]
[WhiteElo "2189"]
[BlackElo "2542"]
[TimeControl "180+1"]
[EndTime "10:06:20 PDT"]
[Termination "axvesik won by checkmate"]

1. Nf3 {[%clk 0:02:59.2]} 1... Nf6 {[%clk 0:02:33.2]} 2. c4 {[%clk 0:02:59.4]}
2... e6 {[%clk 0:02:32.6]} 3. Nc3 {[%clk 0:02:59.8]} 3... d5 {[%clk 0:02:27.2]}
4. d4 {[%clk 0:02:59.9]} 4... dxc4 {[%clk 0:02:27]} 5. e4 {[%clk 0:02:58.1]}
5... b5 {[%clk 0:02:26.7]} 6. e5 {[%clk 0:02:56.4]} 6... Nd5 {[%clk 0:02:26.7]}
7. Nxb5 {[%clk 0:02:55.8]} 7... Nb6 {[%clk 0:02:26.6]} 8. Nc3 {[%clk 0:02:52.5]}
8... Bb7 {[%clk 0:02:25.5]} 9. Be3 {[%clk 0:02:51.6]} 9... Qd7 {[%clk
0:02:20.9]} 10. Be2 {[%clk 0:02:42]} 10... Be7 {[%clk 0:02:16.2]} 11. O-O {[%clk
0:02:40.2]} 11... Nc6 {[%clk 0:02:16.1]} 12. a4 {[%clk 0:02:38]} 12... Na5
{[%clk 0:02:11.7]} 13. Nd2 {[%clk 0:02:28.8]} 13... O-O-O {[%clk 0:02:07.7]} 14.
Bf3 {[%clk 0:02:27.8]} 14... Nd5 {[%clk 0:02:06.8]} 15. Nxc4 {[%clk 0:02:26.1]}
15... Nxc4 {[%clk 0:02:04.4]} 16. Bc1 {[%clk 0:02:22.6]} 16... g5 {[%clk
0:01:57.7]} 17. a5 {[%clk 0:02:21.9]} 17... h5 {[%clk 0:01:54.4]} 18. a6 {[%clk
0:02:21.2]} 18... Bc6 {[%clk 0:01:54.7]} 19. Qb3 {[%clk 0:02:14.8]} 19... Ncb6
{[%clk 0:01:40.4]} 20. Bd2 {[%clk 0:02:10]} 20... g4 {[%clk 0:01:40.1]} 21. Be2
{[%clk 0:02:06.3]} 21... Nxc3 {[%clk 0:01:37.2]} 22. bxc3 {[%clk 0:02:05.8]}
22... Qd5 {[%clk 0:01:37.4]} 23. Qxd5 {[%clk 0:02:02.9]} 23... Bxd5 {[%clk
0:01:38.3]} 24. Rfc1 {[%clk 0:02:00]} 24... Bc4 {[%clk 0:01:37.7]} 25. Bxc4
{[%clk 0:01:54.2]} 25... Nxc4 {[%clk 0:01:37.7]} 26. Bf4 {[%clk 0:01:54]} 26...
c5 {[%clk 0:01:37]} 27. Ra4 {[%clk 0:01:54.1]} 27... Nb6 {[%clk 0:01:37]} 28.
Ra5 {[%clk 0:01:52.3]} 28... cxd4 {[%clk 0:01:35.7]} 29. cxd4+ {[%clk
0:01:52.1]} 29... Kb8 {[%clk 0:01:36.2]} 30. Be3 {[%clk 0:01:50.1]} 30... Rd5
{[%clk 0:01:35.4]} 31. Ra2 {[%clk 0:01:48.4]} 31... Rc8 {[%clk 0:01:34.9]} 32.
Rb1 {[%clk 0:01:46]} 32... Rc3 {[%clk 0:01:26.7]} 33. Rab2 {[%clk 0:01:45]}
33... Ra3 {[%clk 0:01:21.7]} 34. h3 {[%clk 0:01:37.7]} 34... Rxa6 {[%clk
0:01:21]} 35. hxg4 {[%clk 0:01:37.4]} 35... hxg4 {[%clk 0:01:20.9]} 36. Kh2
{[%clk 0:01:34.7]} 36... Ra3 {[%clk 0:01:17.6]} 37. Rb3 {[%clk 0:01:22.9]} 37...
Rxb3 {[%clk 0:01:17.2]} 38. Rxb3 {[%clk 0:01:23.4]} 38... Kb7 {[%clk 0:01:18.1]}
39. Kg3 {[%clk 0:01:23.3]} 39... a5 {[%clk 0:01:18.6]} 40. Kxg4 {[%clk
0:01:23.7]} 40... a4 {[%clk 0:01:19.3]} 41. Rb2 {[%clk 0:01:23.4]} 41... a3
{[%clk 0:01:19.9]} 42. Ra2 {[%clk 0:01:23.5]} 42... Rb5 {[%clk 0:01:20.3]} 43.
Bc1 {[%clk 0:01:23]} 43... Nc4 {[%clk 0:01:20.4]} 44. f4 {[%clk 0:01:21.5]}
44... Rb1 {[%clk 0:01:20.4]} 45. Bxa3 {[%clk 0:01:20.2]} 45... Bxa3 {[%clk
0:01:20.5]} 46. f5 {[%clk 0:01:19.5]} 46... Kc6 {[%clk 0:01:19.2]} 47. fxe6
{[%clk 0:01:18.6]} 47... fxe6 {[%clk 0:01:19.8]} 48. Rc2 {[%clk 0:01:19]} 48...
Kd5 {[%clk 0:01:20.4]} 49. Rf2 {[%clk 0:01:18.5]} 49... Rg1 {[%clk 0:01:18.2]}
50. Kh3 {[%clk 0:01:17.8]} 50... Kxd4 {[%clk 0:01:18.4]} 51. Rf4+ {[%clk
0:01:17.4]} 51... Kd5 {[%clk 0:01:18.1]} 52. g4 {[%clk 0:01:17.9]} 52... Nxe5
{[%clk 0:01:17.4]} 53. Ra4 {[%clk 0:01:15.1]} 53... Rxg4 {[%clk 0:01:17.3]} 54.
Rxa3 {[%clk 0:01:14.4]} 54... Rd4 {[%clk 0:01:16.9]} 55. Ra5+ {[%clk 0:01:12.7]}
55... Ke4 {[%clk 0:01:16.9]} 56. Kg3 {[%clk 0:01:11.5]} 56... Rd3+ {[%clk
0:01:16.6]} 57. Kf2 {[%clk 0:01:11.5]} 57... Nc4 {[%clk 0:01:15.8]} 58. Ra4
{[%clk 0:01:10.6]} 58... Kd4 {[%clk 0:01:16.1]} 59. Ke2 {[%clk 0:01:10.7]} 59...
e5 {[%clk 0:01:16.3]} 60. Ra8 {[%clk 0:01:08.7]} 60... Rd2+ {[%clk 0:01:16.1]}
61. Ke1 {[%clk 0:01:08.3]} 61... Rb2 {[%clk 0:01:16]} 62. Rd8+ {[%clk
0:01:07.2]} 62... Ke3 {[%clk 0:01:16.2]} 63. Kf1 {[%clk 0:01:05.5]} 63... e4
{[%clk 0:01:16.2]} 64. Rd1 {[%clk 0:01:04.1]} 64... Nd2+ {[%clk 0:01:16.2]} 65.
Kg1 {[%clk 0:01:02.6]} 65... Nf3+ {[%clk 0:01:16.1]} 66. Kf1 {[%clk 0:01:02.7]}
66... Rf2# {[%clk 0:01:16.2]} 0-1

[Event "*** Titled Tuesday Blitz"]
[Site "Chess.com"]
[Date "2020.05.26"]
[Round "1"]
[White "ehrenfeld"]
[Black "LyonBeast"]
[Result "0-1"]
[WhiteElo "2443"]
[BlackElo "2955"]
[TimeControl "180+1"]
[EndTime "10:06:21 PDT"]
[Termination "LyonBeast won by resignation"]

1. e4 {[%clk 0:03:00.9]} 1... c6 {[%clk 0:02:58.8]} 2. d4 {[%clk 0:03:00.4]}
2... d5 {[%clk 0:02:58.9]} 3. exd5 {[%clk 0:03:00.8]} 3... cxd5 {[%clk
0:02:58.8]} 4. Bd3 {[%clk 0:03:01.2]} 4... Nf6 {[%clk 0:02:58.9]} 5. c3 {[%clk
0:03:00.9]} 5... Bg4 {[%clk 0:02:58.3]} 6. Qb3 {[%clk 0:03:00.1]} 6... Qb6
{[%clk 0:02:54.9]} 7. Qxb6 {[%clk 0:02:59]} 7... axb6 {[%clk 0:02:54.6]} 8. Bf4
{[%clk 0:02:56.7]} 8... e6 {[%clk 0:02:51.9]} 9. Nd2 {[%clk 0:02:56.4]} 9... Nc6
{[%clk 0:02:48.5]} 10. Ngf3 {[%clk 0:02:55.6]} 10... Nd7 {[%clk 0:02:46.7]} 11.
O-O {[%clk 0:02:54.2]} 11... Be7 {[%clk 0:02:46.2]} 12. a3 {[%clk 0:02:48.7]}
12... Bh5 {[%clk 0:02:45.8]} 13. Rfe1 {[%clk 0:02:47]} 13... O-O {[%clk
0:02:44.4]} 14. h3 {[%clk 0:02:38.1]} 14... Rfc8 {[%clk 0:02:43.2]} 15. Bh2
{[%clk 0:02:28.5]} 15... Bg6 {[%clk 0:02:41.2]} 16. Bf1 {[%clk 0:02:27.7]} 16...
Nf6 {[%clk 0:02:34.3]} 17. Rac1 {[%clk 0:02:27]} 17... Ne8 {[%clk 0:02:33.4]}
18. Ne5 {[%clk 0:02:22.7]} 18... Nxe5 {[%clk 0:02:31.8]} 19. Bxe5 {[%clk
0:02:22.4]} 19... Bg5 {[%clk 0:02:27.6]} 20. Red1 {[%clk 0:02:15.4]} 20... h5
{[%clk 0:02:14.7]} 21. Ra1 {[%clk 0:02:10.7]} 21... Bc2 {[%clk 0:02:12.6]} 22.
Re1 {[%clk 0:01:38.9]} 22... Bxd2 {[%clk 0:01:42.8]} 23. Re2 {[%clk 0:01:38.5]}
23... f6 {[%clk 0:01:43.3]} 24. Bg3 {[%clk 0:00:47.1]} 24... Bxc3 {[%clk
0:01:41.3]} 25. Rxc2 {[%clk 0:00:41.2]} 25... Bxd4 {[%clk 0:01:41.3]} 26. Rd2
{[%clk 0:00:36.4]} 26... e5 {[%clk 0:01:39]} 27. Rad1 {[%clk 0:00:33.8]} 27...
Rc6 {[%clk 0:01:31.9]} 28. Bb5 {[%clk 0:00:30.6]} 28... Rc5 {[%clk 0:01:31.5]}
29. Bd7 {[%clk 0:00:27.8]} 29... Kf7 {[%clk 0:01:30.1]} 30. Kh2 {[%clk
0:00:20.5]} 30... g5 {[%clk 0:01:28.4]} 31. h4 {[%clk 0:00:19.9]} 31... Rd8
{[%clk 0:01:27.2]} 32. Bf5 {[%clk 0:00:19.2]} 32... Nd6 {[%clk 0:01:25.6]} 33.
Bb1 {[%clk 0:00:18.6]} 33... g4 {[%clk 0:01:23.4]} 34. Rxd4 {[%clk 0:00:16.3]}
34... exd4 {[%clk 0:01:23.2]} 35. Rxd4 {[%clk 0:00:16.9]} 35... Ke6 {[%clk
0:01:20.6]} 36. Ba2 {[%clk 0:00:16]} 36... Nf5 {[%clk 0:01:19.7]} 37. Re4+
{[%clk 0:00:14.7]} 37... Kf7 {[%clk 0:01:20.1]} 38. Rb4 {[%clk 0:00:11]} 38...
Nxg3 {[%clk 0:01:20]} 39. Kxg3 {[%clk 0:00:11]} 39... Rd6 {[%clk 0:01:19.5]} 40.
Kf4 {[%clk 0:00:10.2]} 40... Kg7 {[%clk 0:01:19.7]} 41. f3 {[%clk 0:00:09.7]}
41... d4 {[%clk 0:01:19.5]} 0-1